fUST/lending_fUST_20250719
["ID","MTS","AMOUNT","RATE_DAILY","PERIOD"]
[373225268,1752915050144,-500.0,0.00019273,2]
[373225269,1752915050153,-500.87256702,0.00019273,2]
[373225270,1752915050162,-522.90976904,0.00019273,2]
[373225271,1752915050172,-500.0,0.00019273,2]
[373225272,1752915050182,-500.0,0.00019273,2]
[373225273,1752915050191,-500.0,0.00019273,2]
[373225274,1752915050201,-500.0,0.00019273,2]
[373225275,1752915050210,-500.0,0.00019273,2]
[373225276,1752915050219,-500.0,0.00019273,2]
[373225277,1752915050229,-500.44982833,0.00019273,2]
[373225278,1752915050238,-500.0,0.00019273,2]
[373225279,1752915050248,-500.0,0.00019273,2]
[373225280,1752915050257,-501.65540259,0.00019273,2]
[373225281,1752915050267,-500.0,0.00019273,2]
[373225282,1752915050278,-500.0,0.00019273,2]
[373225283,1752915050287,-500.0,0.00019273,2]
[373225284,1752915050297,-500.0,0.00019273,2]
[373225285,1752915050307,-500.0,0.00019273,2]
[373225286,1752915050317,-310.55161233,0.00019273,2]
[373225287,1752915050327,-170.18971475,0.00019273,2]
[373225288,1752915050337,-500.0,0.00019273,2]
[373225289,1752915050346,-500.0,0.00019273,2]
[373225290,1752915050356,-500.0,0.00019273,2]
[373225291,1752915050366,-500.40017057,0.00019273,2]
[373225292,1752915050375,-500.0,0.00019273,2]
[373225293,1752915050387,-314.08014291,0.00019273,2]
[373225294,1752915050397,-500.0,0.00019273,2]
[373225295,1752915050406,-522.02588896,0.00019273,2]
[373225296,1752915050415,-500.0,0.00019273,2]
[373225297,1752915050425,-500.0,0.00019273,2]
[373225298,1752915050434,-550.76637585,0.00019273,2]
[373225299,1752915050445,-502.05924644,0.00019273,2]
[373225300,1752915050455,-500.0,0.00019273,2]
[373225301,1752915050465,-500.0,0.00019273,2]
[373225302,1752915050476,-500.0,0.00019273,2]
[373225303,1752915050486,-618.87769149,0.00019273,2]
[373225304,1752915050495,-443.27590309,0.00019273,2]
[373225305,1752915050505,-500.0,0.00019273,2]
[373225306,1752915050515,-500.0,0.00019273,2]
[373225307,1752915050525,-345.54058165,0.00019273,2]
[373225308,1752915050535,-500.0,0.00019273,2]
[373225309,1752915050545,-500.0,0.00019273,2]
[373225310,1752915050554,-500.0,0.00019273,2]
[373225311,1752915050564,-172.83304737,0.00019273,2]
[373225312,1752915050573,-500.0,0.00019273,2]
[373225313,1752915050583,-500.0,0.00019273,2]
[373225314,1752915050594,-500.0,0.00019273,2]
[373225315,1752915050604,-500.0,0.00019273,2]
[373225316,1752915050614,-500.0,0.00019273,2]
[373225317,1752915050624,-151.0,0.00019273,2]
[373225318,1752915050634,-642.21933283,0.00019299,2]
[373225319,1752915050643,-1292.4693242,0.00019299,2]
[373225320,1752915050653,-1292.4693242,0.00019299,2]
[373225321,1752915050663,-1292.4693242,0.00019299,2]
[373225322,1752915050672,-1292.4693242,0.00019299,2]
[373225323,1752915050682,-1292.4693242,0.00019299,2]
[373225324,1752915050692,-1292.4693242,0.00019299,2]
[373225325,1752915050702,-1292.4693242,0.00019299,2]
[373225326,1752915050711,-1292.4693242,0.00019299,2]
[373225327,1752915050721,-1292.4693242,0.00019299,2]
[373225328,1752915050731,-1292.4693242,0.00019299,2]
[373225329,1752915050740,-1292.4693242,0.00019299,2]
[373225330,1752915050750,-1292.4693242,0.00019299,2]
[373225331,1752915050759,-1292.4693242,0.00019299,2]
[373225332,1752915050768,-1292.4693242,0.00019299,2]
[373225333,1752915050779,-1292.4693242,0.00019299,2]
[373225334,1752915050788,-1292.4693242,0.00019299,2]
[373225335,1752915050798,-1292.4693242,0.00019299,2]
[373225336,1752915050808,-1292.4693242,0.00019299,2]
[373225337,1752915050817,-1292.4693242,0.00019299,2]
[373225338,1752915050827,-1405.56039008,0.00019299,2]
[373225339,1752915050837,-1405.56039008,0.00019299,2]
[373225340,1752915050846,-1405.56039008,0.00019299,2]
[373225341,1752915050856,-1405.56039008,0.00019299,2]
[373225342,1752915050866,-1405.56039008,0.00019299,2]
[373225343,1752915050875,-1405.56039008,0.00019299,2]
[373225344,1752915050887,-1405.56039008,0.00019299,2]
[373225345,1752915050899,-1405.56039008,0.00019299,2]
[373225346,1752915050908,-161.36420322,0.00019299,2]
[373225347,1752915050918,-306841.13491569,0.000193,2]
[373225348,1752915050929,-2002.55621184,0.000193,2]
[373225349,1752915050939,-151.0,0.000193,2]
[373225350,1752915050948,-151.0,0.000193,2]
[373225351,1752915050958,-326.934336,0.000193,2]
[373225352,1752915050968,-326.934336,0.000193,2]
[373225353,1752915050977,-151.0,0.000193,2]
[373225354,1752915050987,-151.0,0.000193,2]
[373225355,1752915050998,-151.0,0.000193,2]
[373225356,1752915051007,-151.0,0.000193,2]
[373225357,1752915051017,-151.0,0.000193,2]
[373225358,1752915051028,-159.394723,0.000193,2]
[373225359,1752915051038,-159.394723,0.000193,2]
[373225360,1752915051048,-151.0,0.000193,2]
[373225361,1752915051058,-151.0,0.000193,2]
[373225362,1752915051067,-151.0,0.000193,2]
[373225363,1752915051077,-151.0,0.000193,2]
[373225364,1752915051087,-151.0,0.000193,2]
[373225365,1752915051097,-151.0,0.000193,2]
[373225366,1752915051107,-199.441968,0.000193,2]
[373225367,1752915051117,-199.441968,0.000193,2]
[373225368,1752915051127,-160.682985,0.000193,2]
[373225369,1752915051136,-160.682985,0.000193,2]
[373225370,1752915051146,-380.522159,0.000193,2]
[373225371,1752915051156,-165.933585,0.000193,2]
[373225372,1752915051166,-380.522159,0.000193,2]
[373225373,1752915051176,-165.933585,0.000193,2]
[373225374,1752915051186,-311.518663,0.000193,2]
[373225375,1752915051196,-471.067798,0.000193,2]
[373225376,1752915051206,-311.518663,0.000193,2]
[373225377,1752915051216,-471.067798,0.000193,2]
[373225378,1752915051226,-151.0,0.000193,2]
[373225379,1752915051235,-151.0,0.000193,2]
[373225380,1752915051245,-151.0,0.000193,2]
[373225381,1752915051254,-151.0,0.000193,2]
[373225382,1752915051264,-151.0,0.000193,2]
[373225383,1752915051275,-163.190204,0.000193,2]
[373225384,1752915051285,-163.190204,0.000193,2]
[373225385,1752915051295,-151.0,0.000193,2]
[373225386,1752915051304,-151.0,0.000193,2]
[373225387,1752915051314,-1379.131897,0.000193,2]
[373225388,1752915051325,-1379.131897,0.000193,2]
[373225389,1752915051335,-568.89,0.00019327,2]
[373225390,1752915051344,-460.0,0.00019327,2]
[373225391,1752915051353,-1981.01,0.00019327,2]
[373225392,1752915051363,-408.0,0.00019327,2]
[373225393,1752915051373,-1211.41,0.00019327,2]
[373225394,1752915051382,-460.0,0.00019327,2]
[373225395,1752915051392,-460.0,0.00019327,2]
[373225396,1752915051402,-460.0,0.00019327,2]
[373225397,1752915051412,-1416.53,0.00019327,2]
[373225398,1752915051422,-460.0,0.00019327,2]
[373225399,1752915051431,-548.2,0.00019327,2]
[373225400,1752915051441,-3832.65,0.00019327,2]
[373225401,1752915051450,-460.0,0.00019327,2]
[373225402,1752915051460,-460.0,0.00019328,2]
[373225403,1752915051470,-548.07,0.00019328,2]
[373225404,1752915051479,-460.0,0.00019328,2]
[373225405,1752915051489,-460.0,0.00019328,2]
[373225406,1752915051499,-460.0,0.00019328,2]
[373225407,1752915051508,-460.0,0.00019328,2]
[373225408,1752915051517,-460.0,0.00019328,2]
[373225409,1752915051528,-460.0,0.00019328,2]
[373225410,1752915051537,-505.62,0.00019328,2]
[373225411,1752915051547,-1621.49,0.00019328,2]
[373225412,1752915051557,-460.0,0.00019328,2]
[373225413,1752915051567,-460.0,0.00019328,2]
[373225414,1752915051578,-630.93,0.00019328,2]
[373225415,1752915051588,-1089.4,0.00019328,2]
[373225416,1752915051598,-460.0,0.00019328,2]
[373225417,1752915051608,-1000.0,0.00019328,3]
[373225418,1752915051618,-1000.0,0.00019328,7]
[373225419,1752915051628,-460.0,0.00019328,2]
[373225420,1752915051639,-460.0,0.00019328,2]
[373225421,1752915051648,-460.0,0.00019328,2]
[373225422,1752915051658,-2315.16,0.00019328,2]
[373225423,1752915051667,-658.57,0.00019328,2]
[373225424,1752915051677,-460.0,0.00019328,2]
[373225425,1752915051686,-460.0,0.00019328,2]
[373225426,1752915051696,-1049.11,0.00019328,2]
[373225427,1752915051706,-460.0,0.00019328,2]
[373225428,1752915051716,-152.405434,0.00019329,2]
[373225429,1752915051725,-151.0,0.00019329,2]
[373225430,1752915051735,-151.0,0.00019329,2]
[373225431,1752915051745,-151.0,0.00019329,2]
[373225432,1752915051754,-460.0,0.00019329,2]
[373225433,1752915051763,-301.290918,0.00019329,2]
[373225434,1752915051773,-151.0,0.00019329,2]
[373225435,1752915051782,-151.0,0.00019329,2]
[373225436,1752915051793,-151.0,0.00019329,2]
[373225437,1752915051805,-151.0,0.00019329,2]
[373225438,1752915051815,-151.0,0.00019329,2]
[373225439,1752915051825,-151.0,0.00019329,2]
[373225440,1752915051842,-151.0,0.00019329,2]
[373225441,1752915051852,-151.0,0.00019329,2]
[373225442,1752915051970,-151.0,0.00019329,2]
[373225443,1752915051981,-151.0,0.00019329,2]
[373225444,1752915051991,-316.688094,0.00019329,2]
[373225445,1752915052001,-213.9948,0.00019329,2]
[373225446,1752915052011,-213.9948,0.00019329,2]
[373225447,1752915052020,-185.581038,0.00019329,2]
[373225448,1752915052030,-151.0,0.00019329,2]
[373225449,1752915052040,-151.0,0.00019329,2]
[373225450,1752915052053,-151.0,0.00019329,2]
[373225451,1752915052063,-151.0,0.00019329,2]
[373225452,1752915052073,-151.0,0.00019329,2]
[373225453,1752915052082,-199.441968,0.00019329,2]
[373225454,1752915052092,-199.441968,0.00019329,2]
[373225455,1752915052102,-380.522159,0.00019329,2]
[373225456,1752915052111,-165.933585,0.00019329,2]
[373225457,1752915052120,-380.522159,0.00019329,2]
[373225458,1752915052130,-165.933585,0.00019329,2]
[373225459,1752915052140,-1408.02,0.00019329,2]
[373225460,1752915052149,-460.0,0.00019329,2]
[373225461,1752915052159,-863.09,0.00019329,2]
[373225462,1752915052169,-311.518663,0.00019329,2]
[373225463,1752915052178,-471.067798,0.00019329,2]
[373225464,1752915052188,-311.518663,0.00019329,2]
[373225465,1752915052198,-471.067798,0.00019329,2]
[373225466,1752915052208,-151.0,0.00019329,2]
[373225467,1752915052218,-915.27,0.00019329,2]
[373225468,1752915052227,-151.0,0.00019329,2]
[373225469,1752915052239,-151.0,0.00019329,2]
[373225470,1752915052249,-766.51,0.00019329,2]
[373225471,1752915052260,-151.0,0.00019329,2]
[373225472,1752915052269,-563.58,0.00019329,2]
[373225473,1752915052279,-151.0,0.00019329,2]
[373225474,1752915052288,-163.190204,0.00019329,2]
[373225475,1752915052298,-163.190204,0.00019329,2]
[373225476,1752915052307,-151.0,0.00019329,2]
[373225477,1752915052317,-152.21559,0.00019329,2]
[373225478,1752915052327,-1379.131897,0.00019329,2]
[373225479,1752915052337,-1379.131897,0.00019329,2]
[373225480,1752915052346,-100000.0,0.00019329,2]
[373225481,1752915052356,-235.69420803,0.0001933,2]
[373225482,1752915052365,-151.0,0.0001933,2]
[373225483,1752915052375,-326.934336,0.0001933,2]
[373225484,1752915052384,-326.934336,0.0001933,2]
[373225485,1752915052394,-151.0,0.0001933,2]
[373225486,1752915052404,-151.0,0.0001933,2]
[373225487,1752915052414,-266.720644,0.0001933,2]
[373225488,1752915052423,-159.394723,0.0001933,2]
[373225489,1752915052433,-159.394723,0.0001933,2]
[373225490,1752915052443,-178.154916,0.0001933,2]
[373225491,1752915052452,-160.682985,0.0001933,2]
[373225492,1752915052462,-160.682985,0.0001933,2]
[373225493,1752915052472,-500.0,0.00019373,2]
[373225494,1752915052482,-4363.15213836,0.00019383,2]
[373225495,1752915052492,-800.0,0.00019389,2]
[373225496,1752915052501,-299.61533,0.00019452,2]
[373225497,1752915052511,-47956.5651239,0.0001949,2]
[373225498,1752915052521,-250.0,0.00019522,2]
[373225499,1752915052531,-2500.0,0.00019524,2]
[373225500,1752915052540,-1894.35,0.000196,2]
[373225501,1752915052550,-568.89,0.00019601,2]
[373225502,1752915052561,-460.0,0.00019601,2]
[373225503,1752915052571,-1981.01,0.00019601,2]
[373225504,1752915052580,-1211.41,0.00019601,2]
[373225505,1752915052590,-460.0,0.00019601,2]
[373225506,1752915052601,-460.0,0.00019601,2]
[373225507,1752915052611,-460.0,0.00019601,2]
[373225508,1752915052623,-1416.53,0.00019601,2]
[373225509,1752915052634,-460.0,0.00019601,2]
[373225510,1752915052644,-548.2,0.00019601,2]
[373225511,1752915052654,-3832.65,0.00019601,2]
[373225512,1752915052663,-460.0,0.00019601,2]
[373225513,1752915052673,-460.0,0.00019602,2]
[373225514,1752915052682,-460.0,0.00019602,2]
[373225515,1752915052692,-460.0,0.00019602,2]
[373225516,1752915052702,-460.0,0.00019602,2]
[373225517,1752915052711,-460.0,0.00019602,2]
[373225518,1752915052721,-505.62,0.00019602,2]
[373225519,1752915052731,-1621.49,0.00019602,2]
[373225520,1752915052741,-460.0,0.00019602,2]
[373225521,1752915052752,-460.0,0.00019602,2]
[373225522,1752915052762,-630.93,0.00019602,2]
[373225523,1752915052772,-1089.4,0.00019602,2]
[373225524,1752915052782,-460.0,0.00019602,2]
[373225525,1752915052791,-460.0,0.00019602,2]
[373225526,1752915052801,-460.0,0.00019602,2]
[373225527,1752915052811,-460.0,0.00019602,2]
[373225528,1752915052821,-2315.16,0.00019602,2]
[373225529,1752915052830,-658.57,0.00019602,2]
[373225530,1752915052840,-460.0,0.00019602,2]
[373225531,1752915052850,-460.0,0.00019602,2]
[373225532,1752915052859,-1049.11,0.00019602,2]
[373225533,1752915052869,-460.0,0.00019602,2]
[373225534,1752915052878,-460.0,0.00019603,2]
[373225535,1752915052891,-1408.02,0.00019603,2]
[373225536,1752915052900,-460.0,0.00019603,2]
[373225537,1752915052910,-863.09,0.00019603,2]
[373225538,1752915052919,-915.27,0.00019603,2]
[373225539,1752915052931,-766.51,0.00019603,2]
[373225540,1752915052940,-563.58,0.00019603,2]
[373225541,1752915052949,-331.068,0.00019616,2]
[373225542,1752915052965,-460.0,0.00019626,2]
[373225543,1752915052979,-500.0,0.0001968,2]
[373225544,1752915052989,-4363.15213836,0.00019693,2]
[373225545,1752915052999,-2500.0,0.00019713,2]
[373225546,1752915053009,-587.0,0.00019803,2]
[373225547,1752915053019,-307.06636304,0.00019821,2]
[373225548,1752915053031,-502.22930144,0.00019821,2]
[373225549,1752915053041,-1004.26587007,0.00019821,2]
[373225550,1752915053051,-1000.0,0.00019821,2]
[373225551,1752915053061,-501.52893473,0.00019821,2]
[373225552,1752915053071,-1000.0,0.00019821,2]
[373225553,1752915053081,-1000.0,0.00019821,2]
[373225554,1752915053091,-1000.0,0.00019821,2]
[373225555,1752915053100,-1000.0,0.00019821,2]
[373225556,1752915053110,-1075.41876814,0.00019821,2]
[373225557,1752915053120,-425.78747007,0.00019821,2]
[373225558,1752915053129,-1000.0,0.00019821,2]
[373225559,1752915053139,-561.90127604,0.00019821,2]
[373225560,1752915519896,151.0,0.000163,2]
[373225561,1752915520079,151.0,0.000154,2]
[373225562,1752915520481,151.0,0.000146,2]
[373225564,1752915520834,151.0,0.000137,2]
[373225565,1752915521126,151.0,0.000128,2]
[373225566,1752915521475,151.0,0.000119,2]
[373225569,1752915890965,336.361165,0.00013699,2]
[373225570,1752916071634,182.8075454,0.00016483,2]
[373225571,1752916129084,24900.0,0.00015583,2]
[373225573,1752916200931,181.134458,0.00015707,2]
[373225574,1752916217586,182.80754537,0.00016483,2]
[373225594,1752916232306,-431.66,0.00016575,3]
[373225596,1752916232316,-215.83,0.00016575,3]
[373225598,1752916232327,-647.5,0.00016575,3]
[373225600,1752916232338,-510.88,0.00016576,3]
[373225602,1752916232348,-300.0,0.00016581,2]
[373225604,1752916232357,-840.57779886,0.00016581,2]
[373225607,1752916232370,-307.42220114,0.00016581,2]
[373225609,1752916232381,-582.0,0.00016582,2]
[373225611,1752916232391,-501.02,0.00016582,2]
[373225612,1752916232400,-460.0,0.00016582,2]
[373225613,1752916232410,-460.0,0.00016582,2]
[373225614,1752916232420,-460.0,0.00016582,2]
[373225615,1752916232430,-399.24019107,0.00016582,2]
[373225616,1752916232440,-460.0,0.00016582,2]
[373225617,1752916232449,-460.0,0.00016582,2]
[373225618,1752916232459,-460.0,0.00016582,2]
[373225619,1752916232469,-460.0,0.00016582,2]
[373225621,1752916232480,-460.0,0.00016582,2]
[373225622,1752916232490,-461.84116932,0.00016582,2]
[373225623,1752916232499,-405.30714718,0.00016582,2]
[373225624,1752916232509,-460.0,0.00016582,2]
[373225625,1752916232519,-601.89649655,0.00016582,2]
[373225626,1752916232544,-4531.79350345,0.00016582,2]
[373225628,1752916232554,-460.0,0.00016582,2]
[373225629,1752916232564,-460.0,0.00016582,2]
[373225630,1752916232574,-460.0,0.00016582,2]
[373225631,1752916232584,-460.0,0.00016583,2]
[373225632,1752916232594,-460.0,0.00016583,2]
[373225633,1752916232604,-460.0,0.00016583,2]
[373225634,1752916232614,-135.58723786,0.00016583,2]
[373225635,1752916232630,-267.88980492,0.00016583,2]
[373225636,1752916232642,-56.52295722,0.00016583,2]
[373225637,1752916232652,-606.07076401,0.00016583,2]
[373225638,1752916232662,-460.0,0.00016583,2]
[373225639,1752916232672,-460.0,0.00016583,2]
[373225640,1752916232683,-460.0,0.00016583,2]
[373225641,1752916232693,-461.17921993,0.00016583,2]
[373225642,1752916232703,-460.0,0.00016583,2]
[373225643,1752916232713,-460.0,0.00016583,2]
[373225644,1752916232723,-460.0,0.00016583,2]
[373225645,1752916232734,-238.62486037,0.00016583,2]
[373225646,1752916232744,-205.17220845,0.00016583,2]
[373225647,1752916232753,-460.0,0.00016583,2]
[373225648,1752916232763,-460.0,0.00016583,2]
[373225649,1752916232773,-460.0,0.00016583,2]
[373225650,1752916232783,-460.0,0.00016583,2]
[373225651,1752916232793,-460.0,0.00016583,2]
[373225652,1752916232803,-2916.31,0.00016583,2]
[373225653,1752916232813,-2071.08,0.00016583,2]
[373225654,1752916232824,-46.90762339,0.00016583,2]
[373225707,1752916238306,-460.0,0.00016582,2]
[373225708,1752916238316,-460.0,0.00016582,2]
[373225709,1752916238326,-413.09237661,0.00016583,2]
[373225710,1752916238336,-677.36,0.00016583,2]
[373225711,1752916238346,-460.0,0.00016583,2]
[373225712,1752916238356,-460.0,0.00016583,2]
[373225713,1752916238366,-460.0,0.00016583,2]
[373225714,1752916238376,-460.0,0.00016583,2]
[373225715,1752916238386,-461.82551632,0.00016583,2]
[373225716,1752916238396,-460.0,0.00016583,2]
[373225717,1752916238406,-460.0,0.00016583,2]
[373225718,1752916238417,-460.0,0.00016583,2]
[373225719,1752916238427,-462.09326379,0.00016583,2]
[373225720,1752916238437,-460.0,0.00016583,2]
[373225721,1752916238448,-2419.91,0.00016583,2]
[373225722,1752916238458,-194.80044835,0.00016583,2]
[373225723,1752916238468,-460.0,0.00016583,2]
[373225724,1752916238479,-460.0,0.00016583,2]
[373225725,1752916238489,-460.0,0.00016583,2]
[373225726,1752916238499,-460.0,0.00016583,2]
[373225727,1752916238510,-460.0,0.00016583,2]
[373225728,1752916238520,-460.0,0.00016583,2]
[373225729,1752916238530,-460.0,0.00016583,2]
[373225730,1752916238541,-460.0,0.00016583,2]
[373225731,1752916238550,-460.0,0.00016583,2]
[373225732,1752916238560,-460.42473469,0.00016583,2]
[373225733,1752916238570,-460.0,0.00016583,2]
[373225734,1752916238760,-1223.81,0.00016583,2]
[373225735,1752916238770,-1354.34,0.00016583,2]
[373225736,1752916238780,-460.0,0.00016583,2]
[373225737,1752916238790,-500.0,0.00016583,2]
[373225738,1752916238800,-500.0,0.00016583,2]
[373225739,1752916238809,-500.0,0.00016583,2]
[373225740,1752916238819,-500.0,0.00016583,2]
[373225741,1752916238829,-500.0,0.00016583,2]
[373225742,1752916238840,-460.0,0.00016583,2]
[373225743,1752916238850,-460.0,0.00016583,2]
[373225744,1752916238860,-460.0,0.00016583,2]
[373225745,1752916238870,-460.0,0.00016583,2]
[373225746,1752916238880,-460.0,0.00016583,2]
[373225747,1752916238891,-551.44,0.00016583,2]
[373225748,1752916238901,-460.0,0.00016583,2]
[373225749,1752916238910,-1938.71,0.00016583,2]
[373225750,1752916238920,-460.0,0.00016583,2]
[373225751,1752916238929,-472.36,0.00016583,2]
[373225752,1752916238939,-460.0,0.00016583,2]
[373225753,1752916238948,-460.0,0.00016583,2]
[373225754,1752916238958,-464.50986927,0.00016583,2]
[373225755,1752916238967,-744.37,0.00016583,2]
[373225756,1752916238977,-460.0,0.00016583,2]
[373225757,1752916238987,-460.494272,0.00016583,2]
[373225758,1752916238997,-460.0,0.00016583,2]
[373225759,1752916239006,-460.0,0.00016583,2]
[373225760,1752916239015,-460.0,0.00016583,2]
[373225761,1752916239025,-463.06859318,0.00016583,2]
[373225762,1752916239034,-460.0,0.00016583,2]
[373225763,1752916239043,-460.0,0.00016583,2]
[373225764,1752916239053,-1110.28,0.00016583,2]
[373225765,1752916239062,-1110.28,0.00016583,2]
[373225766,1752916239072,-28451.13800771,0.00016583,2]
[373225767,1752916239083,-500.0,0.00016583,2]
[373225768,1752916239092,-460.0,0.00016584,2]
[373225769,1752916239102,-460.0,0.00016584,2]
[373225770,1752916239112,-460.0,0.00016584,2]
[373225771,1752916239122,-460.0,0.00016584,2]
[373225772,1752916239131,-460.0,0.00016584,2]
[373225773,1752916239141,-460.0,0.00016584,2]
[373225774,1752916239151,-460.0,0.00016584,2]
[373225775,1752916239163,-460.0,0.00016584,2]
[373225776,1752916239172,-460.0,0.00016584,2]
[373225777,1752916239182,-465.11973435,0.00016584,2]
[373225778,1752916239193,-460.88990617,0.00016584,2]
[373225779,1752916239204,-460.0,0.00016584,2]
[373225780,1752916239216,-460.0,0.00016584,2]
[373225781,1752916239225,-460.0,0.00016584,2]
[373225782,1752916239236,-460.0,0.00016584,2]
[373225783,1752916239247,-460.0,0.00016584,2]
[373225784,1752916239261,-460.0,0.00016584,2]
[373225785,1752916239271,-460.0,0.00016584,2]
[373225786,1752916239284,-460.0,0.00016584,2]
[373225787,1752916239294,-717.88,0.00016584,2]
[373225788,1752916239304,-717.88,0.00016584,2]
[373225789,1752916239314,-460.0,0.00016584,2]
[373225790,1752916239323,-460.0,0.00016584,2]
[373225791,1752916239334,-460.0,0.00016584,2]
[373225792,1752916239343,-460.0,0.00016584,2]
[373225793,1752916239354,-500.0,0.00016584,2]
[373225794,1752916239364,-500.0,0.00016584,2]
[373225795,1752916239374,-460.0,0.00016584,2]
[373225796,1752916239384,-460.0,0.00016584,2]
[373225797,1752916239395,-460.0,0.00016584,2]
[373225798,1752916239405,-460.0,0.00016584,2]
[373225799,1752916239415,-460.0,0.00016584,2]
[373225800,1752916239424,-460.0,0.00016584,2]
[373225801,1752916239434,-460.0,0.00016584,2]
[373225802,1752916239443,-460.0,0.00016584,2]
[373225803,1752916239453,-460.0,0.00016584,2]
[373225804,1752916239463,-460.0,0.00016584,2]
[373225805,1752916239473,-460.0,0.00016584,2]
[373225806,1752916239483,-460.0,0.00016584,2]
[373225807,1752916239493,-460.0,0.00016584,2]
[373225808,1752916239503,-461.10734059,0.00016584,2]
[373225809,1752916239513,-460.0,0.00016584,2]
[373225810,1752916239523,-460.0,0.00016584,2]
[373225811,1752916239533,-460.0,0.00016584,2]
[373225812,1752916239542,-460.0,0.00016584,2]
[373225813,1752916239551,-460.0,0.00016584,2]
[373225814,1752916239561,-460.0,0.00016584,2]
[373225815,1752916239570,-461.40243291,0.00016584,2]
[373225816,1752916239579,-460.0,0.00016584,2]
[373225817,1752916239589,-460.0,0.00016584,2]
[373225818,1752916239599,-460.0,0.00016584,2]
[373225819,1752916239608,-460.0,0.00016584,2]
[373225820,1752916239617,-460.0,0.00016584,2]
[373225821,1752916239627,-460.0,0.00016584,2]
[373225822,1752916239636,-460.0,0.00016584,2]
[373225823,1752916239646,-460.0,0.00016584,2]
[373225824,1752916239655,-460.0,0.00016584,2]
[373225825,1752916239665,-460.0,0.00016584,2]
[373225826,1752916239674,-460.0,0.00016584,2]
[373225827,1752916239684,-460.0,0.00016584,2]
[373225828,1752916239694,-460.0,0.00016584,2]
[373225829,1752916239703,-460.0,0.00016584,2]
[373225830,1752916239713,-460.0,0.00016584,2]
[373225831,1752916239724,-460.0,0.00016584,2]
[373225832,1752916239733,-460.0,0.00016584,2]
[373225833,1752916239743,-460.0,0.00016584,2]
[373225834,1752916239753,-460.0,0.00016584,2]
[373225835,1752916239763,-460.0,0.00016584,2]
[373225836,1752916239772,-460.0,0.00016584,2]
[373225837,1752916239782,-460.0,0.00016584,2]
[373225838,1752916239792,-460.0,0.00016584,2]
[373225839,1752916239803,-460.0,0.00016584,2]
[373225840,1752916239813,-460.0,0.00016584,2]
[373225841,1752916239822,-460.0,0.00016584,2]
[373225842,1752916239831,-461.9970371,0.00016584,2]
[373225843,1752916239841,-460.0,0.00016584,2]
[373225844,1752916239850,-460.0,0.00016584,2]
[373225845,1752916239860,-460.0,0.00016584,2]
[373225846,1752916239870,-460.0,0.00016584,2]
[373225847,1752916239880,-460.0,0.00016584,2]
[373225848,1752916239890,-460.0,0.00016584,2]
[373225849,1752916239899,-460.0,0.00016584,2]
[373225850,1752916239909,-460.0,0.00016584,2]
[373225851,1752916239919,-460.0,0.00016584,2]
[373225852,1752916239928,-573.79932887,0.00016584,2]
[373225853,1752916239938,-460.51803117,0.00016584,2]